{"text_format":"1","workbook":"xlsx","n_sheets":2,"sheets":["Tablas","BAJA GENERAL"],"not_rendered":{"charts":0,"images":0,"macros":1,"external_links":0,"defined_names":15,"comments":0,"pivot_tables":0},"unopened":[],"bounds":{"document_bytes":16777216,"sheet_cells":100000,"rows_first":2000,"rows_last":500,"rows_between":2000,"halvings":0,"cell_chars":16384,"cell_head_chars":4096},"cells_cut":0,"cells_raw":0,"read":"whole","date_system":"1900"}

{"sheet":"Tablas","index":0,"n_rows":29,"n_cols":14,"rows_kept":29,"cut":false,"hidden":true,"merged":[]}
["Motivo_ID","Descripcion","Mov_ID","MotivoIMSS_IDa","Aplicacion_IDa",null,"Id Unico","Motivo_ID","Descripcion",null,"Bajas",{"$f":"COUNTIF(TMovAAA,\"Baja\")+COUNTIF(TMovBack,\"Baja\")+COUNTIF(TMovCFR,\"Baja\")+COUNTIF(TMovClubO,\"Baja\")+COUNTIF(TMovIst,\"Baja\")+COUNTIF(TMovMtto,\"Baja\")+COUNTIF(TMovPopBtl,\"Baja\")+COUNTIF(TMovShelf,\"Baja\")","v":{"$error":"#NAME?"}},"Motivos",{"$f":"COUNTIF(MotAAA,\"*\")+COUNTIF(MotBack,\"*\")+COUNTIF(MotCFR,\"*\")+COUNTIF(MotClubO,\"*\")+COUNTIF(MotIst,\"*\")+COUNTIF(MotMtto,\"*\")+COUNTIF(MotPopBtl,\"*\")+COUNTIF(MotShelf,\"*\")","v":{"$error":"#NAME?"}}]
["100","RENUNCIA VOLUNTARIA","1","2",3,null,{"$f":"(H2&\" / \"&I2)","v":"100 / Renuncia Voluntaria"},{"$f":"A2","v":"100"},{"$f":"TRIM(PROPER(B2))","v":"Renuncia Voluntaria"}]
["101","DEMANDA","1","3",5,null,{"$f":"(H3&\" / \"&I3)","v":"101 / Demanda"},{"$f":"A3","v":"101"},{"$f":"TRIM(PROPER(B3))","v":"Demanda"}]
["102","DESC. EMPRESA","1","3",5,null,"102 / Desc. Empresa","102","Desc. Empresa"]
["103","NO RECONTRATAR","1","3",5,null,"103 / No Recontratar","103","No Recontratar"]
["104","BAJA RP","1","2",0,null,"104 / Baja Rp","104","Baja Rp"]
["105","PRUEBA","1","2",0,null,"105 / Prueba","105","Prueba"]
["106","BAJA SAM´S","1","2",4,null,"106 / Baja Sam´S","106","Baja Sam´S"]
["107","BAJA POR DESEMPEÑO","1","2",3,null,"107 / Baja Por Desempeño","107","Baja Por Desempeño"]
["108","ACTAS ADMINISTRATIVAS","1","2",3,null,"108 / Actas Administrativas","108","Actas Administrativas"]
["109","PETICION DE REPRESENTANTE","1","2",3,null,"109 / Peticion De Representante","109","Peticion De Representante"]
["110","ABANDONO DE TRABAJO","1","2",3,null,"110 / Abandono De Trabajo","110","Abandono De Trabajo"]
["111","MAYOR SUELDO","1","2",3,null,"111 / Mayor Sueldo","111","Mayor Sueldo"]
["112","CUBRE INCAPACIDAD","1","2",3,null,"112 / Cubre Incapacidad","112","Cubre Incapacidad"]
["113","ABANDONO DE TRABAJO","1","3",5,null,"113 / Abandono De Trabajo","113","Abandono De Trabajo"]
["114","CLIMA LABORAL","1","3",3,null,{"$f":"(H16&\" / \"&I16)","v":"114 / Clima Laboral"},"114","Clima Laboral"]
["115","BAJA POR INACTIVIDAD","1","2",3,null,"115 / Baja Por Inactividad","115","Baja Por Inactividad"]
["116","FALTA APOYO EN TRANSPORTE","1","2",3,null,"116 / Falta Apoyo En Transporte","116","Falta Apoyo En Transporte"]
["117","PROBLEMA JEFE DE DEPTO","1","3",3,null,"117 / Problema Jefe De Depto","117","Problema Jefe De Depto"]
["118","POR TIEMPO DE TRASLADO","1","2",3,null,"118 / Por Tiempo De Traslado","118","Por Tiempo De Traslado"]
["119","NO SE AJUSTA AL HORARIO","1","2",3,null,"119 / No Se Ajusta Al Horario","119","No Se Ajusta Al Horario"]
["120","NO CUBRE PERFIL","1","3",3,null,"120 / No Cubre Perfil","120","No Cubre Perfil"]
["121","PAGOS TARDÍOS AGENCIA","1","2",3,null,"121 / Pagos Tardíos Agencia","121","Pagos Tardíos Agencia"]
["122","PROBLEMAS PERSONALES","1","2",5,null,"122 / Problemas Personales","122","Problemas Personales"]
["123","INDEMNIZACIÓN ","1","3",5,null,"123 / Indemnización","123","Indemnización"]
["124","BOLETINADO EN CADENA","1","3",5,null,"124 / Boletinado En Cadena","124","Boletinado En Cadena"]
["125","PROBLEMAS CON EL SUPERV","1","3",5,null,"125 / Problemas Con El Superv","125","Problemas Con El Superv"]
["126","3 FALTAS INJUSTIFICADAS","1","3",5,null,"126 / 3 Faltas Injustificadas","126","3 Faltas Injustificadas"]
["127","NO LE GUSTA EL TRABAJO","1","2",5,null,{"$f":"(H29&\" / \"&I29)","v":"127 / No Le Gusta El Trabajo"},"127","No Le Gusta El Trabajo"]

{"sheet":"BAJA GENERAL","index":1,"n_rows":350,"n_cols":12,"rows_kept":350,"cut":false,"hidden":false,"merged":[[1,1,1,2],[1,3,1,4],[2,1,2,2],[2,3,2,4],[8,7,8,8],[9,7,9,8],[10,7,10,8],[1,6,1,9],[2,6,5,9],[14,7,14,8],[15,7,15,8],[16,7,16,8],[11,7,11,8],[12,7,12,8],[13,7,13,8],[20,7,20,8],[21,7,21,8],[22,7,22,8],[17,7,17,8],[18,7,18,8],[19,7,19,8],[29,7,29,8],[26,7,26,8],[27,7,27,8],[28,7,28,8],[23,7,23,8],[24,7,24,8],[25,7,25,8]]}
[]
[null,"CLIENTE:",null,"CUENTAS VARIAS",null,null,"RAZON SOCIAL",null,null,null,"REINGRESOS, MODIFICACIONES Y BAJAS"]
[null,"CENTRO DE TRABAJO",null,null,null,null,{"$f":"VLOOKUP(D3,B77:C133,2,0)","v":{"$error":"#N/A"}},null,null,null,{"$f":"TODAY()","v":"2024-09-18"}]
[]
[]
[]
[]
[]
[null,"# Empleado","PATERNO MATERNO NOMBRE ( S )","NOMBRE DEL PUESTO","DEPTO O PLAZA","SUELDO DIARIO","TIPO DE MOVIMIENTO","MOTIVO",null,"FECHA MOV. DD/MM/AAAA","OBSERVACIONES"]
[null,null,null,null,null,null,null,null,null,null,null,{"$f":"LEN(K10)","v":0}]
[null,null,null,null,null,null,null,null,null,null,null,{"$f":"LEN(K11)","v":0}]
[null,null,null,null,null,null,null,null,null,null,null,0]
[null,null,null,null,null,null,null,null,null,null,null,0]
[null,null,null,null,null,null,null,null,null,null,null,0]
[null,null,null,null,null,null,null,null,null,null,null,0]
[null,null,null,null,null,null,null,null,null,null,null,0]
[null,null,null,null,null,null,null,null,null,null,null,0]
[null,null,null,null,null,null,null,null,null,null,null,0]
[null,null,null,null,null,null,null,null,null,null,null,0]
[null,null,null,null,null,null,null,null,null,null,null,0]
[null,null,null,null,null,null,null,null,null,null,null,0]
[null,null,null,null,null,null,null,null,null,null,null,0]
[null,null,null,null,null,null,null,null,null,null,null,0]
[null,null,null,null,null,null,null,null,null,null,null,0]
[null,null,null,null,null,null,null,null,null,null,null,0]
[null,null,null,null,null,null,null,null,null,null,null,0]
[null,null,null,null,null,null,null,null,null,null,null,0]
[null,null,null,null,null,null,null,null,null,null,null,0]
[null,null,null,null,null,null,null,null,null,null,null,0]
[null,null,null,null,null,null,null,null,null,null,null,0]
[]
[]
[]
[null,null,"Nombre y firma del solicitante"]
[]
[]
[]
[]
[]
[]
[]
[]
[]
[]
[]
[]
[]
[]
[]
[]
[]
[]
[]
[]
[]
[]
[]
[]
[]
[]
[]
[]
[]
[]
[]
[]
[]
[]
[]
[]
[]
[]
[]
["*","*"]
[]
[null,"CENTRO Y CUENTA","RAZON SOCIAL"]
[null,null,null,"83 CUENTAS","MEX",null,null,null,"A002 ASESORA AUTO LOCAL",0,"100/RENUNCIA VOLUNTARIA"]
[null,"16100120 PICKING BAT","CORPO PT MARKETING DE MEXICO SA DE CV","3000 TUXTEPEC OAX","MEX",null,"BAJA",null,"A013 AYUDANTE A LOCAL",1,"101/DEMANDA"]
[null,"16100121 BAT MTY SEM","CORPO PT MARKETING DE MEXICO SA DE CV","3001 PUEBLA PUE","MEX",null,"MODIFICACION",null,"A022 AUX DE BODEGA",2,"102/DESC. EMPRESA"]
[null,"16100020 P&G PROM SOMBRA","CORPO PT MARKETING DE MEXICO SA DE CV","3002 IRAPUATO GTO","MEX",null,"REINGRESO",null,"A024 AUXILIAR ADMON",3,"103/NO RECONTRATAR"]
[null,"16100300 KARE","CORPO PT MARKETING DE MEXICO SA DE CV","3003 CULIACAN SIN","MEX",null,null,null,"B016 BACK UP",4,"104/BAJA RP"]
[null,"16109204 SAMS DEMOS FIJAS","CORPO PT MARKETING DE MEXICO SA DE CV","3004 TIJUANA B C","MEX",null,null,null,"C002 CHOFER",5,"105/PRUEBA"]
[null,"16109208 SAMS DEMOS FIJAS BAIT","CORPO PT MARKETING DE MEXICO SA DE CV","3005 GUADALAJARA JAL","MEX",null,"PLAN FIJO",null,"C004 COORDINADOR A",6,"106/BAJA SAM´S"]
[null,"16109210 EL SABOR DE SAMS","CORPO PT MARKETING DE MEXICO SA DE CV","3006 ENSENADA B C","MEX",null,"FIN DE SEMANA",null,"C028 COBRANZA",7,"107/BAJA POR DESEMPEÑO"]
[null,"16109304 SAMS DEMOS FIJAS (B)","CORPO PT MARKETING DE MEXICO SA DE CV","3007 TECATE B C","MEX",null,null,null,"D002 DEMOSTRADORA O FRONTERA",8,"108/ACTAS ADMINISTRATIVAS"]
[null,"16109308 SAMS DEMOS FIJAS BAIT (B)","CORPO PT MARKETING DE MEXICO SA DE CV","3008 HERMOSILLO SON","MEX",null,null,null,"D003 DEMOSTRADORA O LOCAL",9,"109/PETICION DE REPRESENTANTE"]
[null,"16109404 SAMS DEMOS FIJAS (C)","CORPO PT MARKETING DE MEXICO SA DE CV","3009 CD OBREGON SON","MEX",null,null,null,"D004 DEMOSTRADORA O FORANEA",10,"110/ABANDONO DE TRABAJO"]
[null,"16700001 ARPAPEL","PT MARKETING SA DE CV","3010 AGUASCALIENTES AGS","MEX",null,null,null,"D016 DEMOSTRADORA A LOCAL",11,"111/MAYOR SUELDO"]
[null,"16700401 BAIT","PT MARKETING SA DE CV","3011 LEON GTO","MEX",null,null,null,"D037 DISENADOR",12,"112/CUBRE INCAPACIDAD"]
[null,"16700080 MACEITE","PT MARKETING SA DE CV","3012 MEXICO D F","MEX",null,null,null,"D038 DIRECTOR GRAL",13]
[null,"16900400 BAIT","D&FE BUSINESS ANALYSTS SA DE CV","3013 QUERETARO QRO","MEX",null,null,null,"E014 ESTILISTA  L",14,"114/CLIMA LABORAL"]
[null,"16909200 SAMS DEMOS EVENTOS","D&FE BUSINESS ANALYSTS SA DE CV","3014 MORELIA MICH","MEX",null,null,null,"E042 EJECUTIVO",15,"115/BAJA POR INACTIVIDAD"]
[null,"16909202 SAMS LIDERES","D&FE BUSINESS ANALYSTS SA DE CV","3015 MONTERREY N L","MEX",null,null,null,"I001 INTENDENCIA",null,"116/FALTA APOYO EN TRANSPORTE"]
[null,"16909204 SAMS DEMOS FIJAS","D&FE BUSINESS ANALYSTS SA DE CV","3016 LA PAZ B C","MEX",null,null,null,"L002 LIDER DE TIENDA",null,"117/PROBLEMA JEFE DE DEPTO"]
[null,"16909205 SAMS DEMOS VARIABLES","D&FE BUSINESS ANALYSTS SA DE CV","3017 CD CONSTITUCION B C","MEX",null,null,null,"L004 LIDER",null,"118/POR TIEMPO DE TRASLADO"]
[null,"16909206 SAMS VETERINARIOS","D&FE BUSINESS ANALYSTS SA DE CV","3018 MEXICALI B C","MEX",null,null,null,"M019 MONTACARGUISTA",null,"119/NO SE AJUSTA AL HORARIO"]
[null,"16909207 SAMS FIJOS VARIABLES","D&FE BUSINESS ANALYSTS SA DE CV","3019 NOGALES SON","MEX",null,null,null,"M021 MANICURISTA",null,"120/NO CUBRE PERFIL"]
[null,"16909208 SAMS FOOD TRUCKS","D&FE BUSINESS ANALYSTS SA DE CV","3020 AGUA PRIETA SON","MEX",null,null,null,"O005 OPERADOR",null,"121/PAGOS TARDÍOS AGENCIA"]
[null,"16909300 SAMS DEMOS EVENTOS (B)","D&FE BUSINESS ANALYSTS SA DE CV","3021 CD JUAREZ CHIH","MEX",null,null,null,"P003 PROMOTOR A LOCAL",null,"122/PROBLEMAS PERSONALES"]
[null,"16909302 SAMS LIDERES (B)","D&FE BUSINESS ANALYSTS SA DE CV","3022 CHIHUAHUA CHIH","MEX",null,null,null,"P014 PROMOTOR A",null,"123/INDEMNIZACIÓN "]
[null,"16909304 SAMS DEMOS FIJAS (B)","D&FE BUSINESS ANALYSTS SA DE CV","3023 CD CAMARGO CHIH","MEX",null,null,null,"P023 PROMOTOR AUTO A",null,"124/BOLETINADO EN CADENA"]
[null,"16909305 SAMS DEMOS VARIABLES (B)","D&FE BUSINESS ANALYSTS SA DE CV","3024 HIDALGO DEL PARRAL CHIH","MEX",null,null,null,"P045 PLANEACION",null,"125/PROBLEMAS CON EL SUPERV"]
[null,"16909306 SAMS VETERINARIOS (B)","D&FE BUSINESS ANALYSTS SA DE CV","3025 CD DELICIAS CHIH","MEX",null,null,null,"P046 PRODUCTOR",null,"126/3 FALTAS INJUSTIFICADAS"]
[null,"16909307 SAMS FIJOS VARIABLES B)","D&FE BUSINESS ANALYSTS SA DE CV","3026 NAVOJOA SON","MEX",null,null,null,"S011 SUBLIDER",null,"127/NO LE GUSTA EL TRABAJO"]
[null,"16900300 DEMOS AAA","D&FE BUSINESS ANALYSTS SA DE CV","3027 LOS MOCHIS SIN","MEX",null,null,null,"S027 SUPERVISOR LIDER",null,"128/NO SE PRESENTO"]
[null,"16900310 SALUD Y BIENESTAR","D&FE BUSINESS ANALYSTS SA DE CV","3028 NAVOLATO SIN","MEX",null,null,null,"S040 SUBLIDER FRONTERA",null,"129/ENFERMEDAD Y/O ACCIDENTE"]
[null,"16909400 SAMS DEMOS EVENTOS (C)","D&FE BUSINESS ANALYSTS SA DE CV","3029 GUASAVE SIN","MEX",null,null,null,"S041 SUBLIDER FORANEO",null,"130/FALLECIMIENTO"]
[null,"16909402 SAMS LIDERES (C)","D&FE BUSINESS ANALYSTS SA DE CV","3030 GUAMUCHIL SIN","MEX",null,null,null,"S042 SUBLIDER LOCAL",null,"131/MRD AFECTO MOVIMIENTO EN "]
[null,"16909404 SAMS DEMOS FIJAS (C)","D&FE BUSINESS ANALYSTS SA DE CV","3031 CD ACUÑA COAH","MEX",null,null,null,"V009 VETERINARIO LOCAL",null,"132/MRD ESTUDIOS"]
[null,"16909405 SAMS DEMOS VARIABLES (C)","D&FE BUSINESS ANALYSTS SA DE CV","3032 PIEDRAS NEGRAS COAH","MEX",null,null,null,"V010 VETERINARIO FORANEO",null,"133/MRD ILOCALIZABLE"]
[null,"16909406 SAMS VETERINARIOS (C)","D&FE BUSINESS ANALYSTS SA DE CV","3033 NUEVA ROSITA COAH","MEX",null,null,null,"V020 VETERINARIO FRONTERA",null,"134/MRD MAYOR SUELDO"]
[null,"16909407 SAMS FIJOS VARIABLES (C)","D&FE BUSINESS ANALYSTS SA DE CV","3034 SABINAS COAH","MEX",null,null,null,"V021 VENDEDOR",null,"135/MRD MEJORES PRESTACIONES"]
[null,null,null,"3035 NUEVO LAREDO TAMP","MEX",null,null,null,"V022 VENDEDOR JR",null,"136/MRD NO SE AJUSTA EL HORAR"]
[null,null,null,"3036 MONCLOVA COAH","MEX",null,null,null,null,null,"137/MRD PETICIÓN DE LA CADENA"]
[null,null,null,"3037 SABINAS HIDALGO N L","MEX",null,null,null,null,null,"138/MRD PETICION REGIONAL CMX"]
[null,null,null,"3038 SALTILLO COAH","MEX",null,null,null,null,null,"139/MRD PROBLEMAS CON MI EJEC"]
[null,null,null,"3039 REYNOSA TAMP","MEX",null,null,null,null,null,"140/MRD PROBLEMAS PERSONALES"]
[null,null,null,"3040 MATAMOROS TAMP","MEX",null,null,null,null,null,"200/AUMENTO DE SUELDO"]
[null,null,null,"3041 TAMPICO TAMP","MEX",null,null,null,null,null,"201/PROMOCION"]
[null,null,null,"3042 DURANGO DGO","MEX",null,null,null,null,null,"202/CAMBIO CT, PUESTO,DEPTO"]
[null,null,null,"3043 MAZATLAN SIN","MEX",null,null,null,null,null,"203/VARIABLES"]
[null,null,null,"3044 FRESNILLO ZAC","MEX",null,null,null,null,null,"ISM/INCREMENTO A SALARIOS MIN"]
[null,null,null,"3045 MATEHUALA S L P","MEX",null,null,null,null,null,"UMA/INCREMENTO UMA"]
[null,null,null,"3046 ZACATECAS ZAC","MEX",null,null,null,null,null,"300/REINGRESO"]
[null,null,null,"3047 S L P S L P","MEX",null,null,null,null,null,"301/REINGRESO C/ANT"]
[null,null,null,"3048 PUERTO VALLARTA JAL","MEX",null,null,null,null,null,"141/MRD VIOLACIÓN DEL REGLAME"]
[null,null,null,"3049 CELAYA GTO","MEX"]
[null,null,null,"3050 MANZANILLO COL","MEX"]
[null,null,null,"3051 COLIMA COL","MEX"]
[null,null,null,"3052 URUAPAN MICH","MEX"]
[null,null,null,"3053 APATZINGAN MICH","MEX"]
[null,null,null,"3054 ZAMORA MICH","MEX"]
[null,null,null,"3055 TOLUCA MEX","MEX"]
[null,null,null,"3056 CUERNAVACA MOR","MEX"]
[null,null,null,"3057 CUAUTLA MOR","MEX"]
[null,null,null,"3058 IGUALA GRO","MEX"]
[null,null,null,"3059 LAZARO CARDENAS MICH","MEX"]
[null,null,null,"3060 ZIHUATANEJO GRO","MEX"]
[null,null,null,"3061 ACAPULCO GRO","MEX"]
[null,null,null,"3062 CHILPANCINGO GRO","MEX"]
[null,null,null,"3063 OAXACA OAX","MEX"]
[null,null,null,"3064 SALINAS CRUZ OAX","MEX"]
[null,null,null,"3065 SAN JUAN DEL RIO QRO","MEX"]
[null,null,null,"3066 TUXTLA GTZ CHIA","MEX"]
[null,null,null,"3067 COMITAN CHIA","MEX"]
[null,null,null,"3068 S CRISTOBAL DE LAS C CHIA","MEX"]
[null,null,null,"3069 VILLAHERMOSA TAB","MEX"]
[null,null,null,"3070 CHETUMAL Q R","MEX"]
[null,null,null,"3071 COZUMEL Q R","MEX"]
[null,null,null,"3072 CANCUN Q R","MEX"]
[null,null,null,"3073 MERIDA YUC","MEX"]
[null,null,null,"3074 CD DEL CARMEN CAMP","MEX"]
[null,null,null,"3075 COATZACOALCOS VER","MEX"]
[null,null,null,"3076 MINATITLAN VER","MEX"]
[null,null,null,"3077 ACAYUCAN VER","MEX"]
[null,null,null,"3078 JALAPA VER","MEX"]
[null,null,null,"3079 VERACRUZ VER","MEX"]
[null,null,null,"3080 POZA RICA VER","MEX"]
[null,null,null,"3081 TUXPAN VER","MEX"]
[null,null,null,"3082 CORDOBA VER","MEX"]
[null,null,null,"3083 ORIZABA VER","MEX"]
[null,null,null,"3084 PACHUCA HGO","MEX"]
[null,null,null,"3085 TEPIC NAY","MEX"]
[null,null,null,"3086 TORREON COAH","MEX"]
[null,null,null,"3087 CABO SAN LUCAS B C S","MEX"]
[null,null,null,"3088 CABORCA SON","MEX"]
[null,null,null,"3089 CASAS GRANDES CHIH","MEX"]
[null,null,null,"3090 CD GUZMAN JAL","MEX"]
[null,null,null,"3091 CD MANTE TAMP","MEX"]
[null,null,null,"3092 CD MIGUEL ALEMAN TAMP","MEX"]
[null,null,null,"3093 CD VALLES S L P","MEX"]
[null,null,null,"3094 CD VICTORIA TAMP","MEX"]
[null,null,null,"3095 CUAUHTEMOC CHIH","MEX"]
[null,null,null,"3096 GUANAJUATO GTO","MEX"]
[null,null,null,"3097 GUAYMAS SON","MEX"]
[null,null,null,"3098 LA PIEDAD MICH","MEX"]
[null,null,null,"3099 LINARES N L","MEX"]
[null,null,null,"3100 LORETO ZAC","MEX"]
[null,null,null,"3101 MONTEMORELOS N L","MEX"]
[null,null,null,"3102 CD PARRAL CHIH","MEX"]
[null,null,null,"3103 RIO BRAVO TAMP","MEX"]
[null,null,null,"3104 SALAMANCA GTO","MEX"]
[null,null,null,"3105 SAN JOSE DEL CABO B C","MEX"]
[null,null,null,"3106 SN LUIS RIO COLORADO SON","MEX"]
[null,null,null,"3107 TAPACHULA CHIA","MEX"]
[null,null,null,"3108 TEHUACAN PUE","MEX"]
[null,null,null,"3109 TLAXCALA TLAX","MEX"]
[null,null,null,"3110 ZAPOTLANEJO JAL","MEX"]
[null,null,null,"3111 CAMPECHE CAMP","MEX"]
[null,null,null,"3112 APIZACO TLAX","MEX"]
[null,null,null,"3113 TULANCINGO HGO","MEX"]
[null,null,null,"3114 TULA HGO","MEX"]
[null,null,null,"3115 COMACALCO OAX","MEX"]
[null,null,null,"3116 TEPATITLAN JAL","MEX"]
[null,null,null,"3117 CARDENAS TAB","MEX"]
[null,null,null,"3118 GOMEZ PALACIOS DGO","MEX"]
[null,null,null,"3119 PUERTO PEÑASCO SON","MEX"]
[null,null,null,"3120 ZITACUARO MICH","MEX"]
[null,null,null,"3121 PINOTEPA GRO","MEX"]
[null,null,null,"3122 CANANEA SON","MEX"]
[null,null,null,"3123 HUATABAMPO SON","MEX"]
[null,null,null,"3124 ROSARITO SIN","MEX"]
[null,null,null,"3125 PATZCUARO MICH","MEX"]
[null,null,null,"3126 GUERRERO NEGRO B C S","MEX"]
[null,null,null,"3127 SAHUAYO MICH","MEX"]
[null,null,null,"3128 ACAMBARO MICH","MEX"]
[null,null,null,"3129 TECOMAN COL","MEX"]
[null,null,null,"3130 MARTINEZ DE LA TORRE VER","MEX"]
[null,null,null,"3131 JEREZ ZAC","MEX"]
[null,null,null,"3132 TEZIUTLAN PUE","MEX"]
[null,null,null,"3133 TEMIXCO MOR","MEX"]
[null,null,null,"3134 TETEPANGO HGO","MEX"]
[null,null,null,"3135 JIUTEPEC MOR","MEX"]
[null,null,null,"3136 CHIAUTEMPAN TLAX","MEX"]
[null,null,null,"3137 PARQUE DELTA D F","MEX"]
[null,null,null,"3138 LAGOS DE MORENO JAL","MEX"]
[null,null,null,"3139 CIUDAD HIGALGO MICH","MEX"]
[null,null,null,"3140 OCOTLAN JAL","MEX"]
[null,null,null,"3141 PLAYA DEL CARMEN Q R","MEX"]
[null,null,null,"3142 ATOTONILCO JAL","MEX"]
[null,null,null,"3143 ARANDAS JAL","MEX"]
[null,null,null,"3144 JALOSTOTITLAN JAL","MEX"]
[null,null,null,"3145 TLAJOMULCO JAL","MEX"]
[null,null,null,"3146 AUTLAN COL","MEX"]
[null,null,null,"3147 MOROLEON GTO","MEX"]
[null,null,null,"3148 COMALCALCO TAB","MEX"]
[null,null,null,"3149 LOS REYES MICH","MEX"]
[null,null,null,"3150 TEQUILA JAL","MEX"]
[null,null,null,"3151 PURUANDIRO MICH","MEX"]
[null,null,null,"3152 AMECA JAL","MEX"]
[null,null,null,"3153 VALLE DE SANTIAGO GTO","MEX"]
[null,null,null,"3154 CHALAPA JAL","MEX"]
[null,null,null,"3155 CD ALTAMIRANO","MEX"]
[null,null,null,"3156 SILAO GTO","MEX"]
[null,null,null,"3157 TEPEJI DEL RIO HGO","MEX"]
[null,null,null,"3158 ROSARITO B C","MEX"]
[null,null,null,"3159 TALA JAL","MEX"]
[null,null,null,"3160 PAPANTLA VER","MEX"]
[null,null,null,"3161 FRESNILLO DGO","MEX"]
[null,null,null,"3162 PALENQUE CHIA","MEX"]
[null,null,null,"3163 ACAMBARO GTO","MEX"]
[null,null,null,"3164 SN JUAN DE LOS LAGOS JAL","MEX"]
[null,null,null,"3165 TENOSIQUE TAB","MEX"]
[null,null,null,"3166 PANUCO VER","MEX"]
[null,null,null,"3167 LAS CHOAPAS VER","MEX"]
[null,null,null,"3168 PUERTO ESCONDIDO OAX","MEX"]
[null,null,null,"3169 HUAJUAPAN OAX","MEX"]
[null,null,null,"3170 SAN ANDRES TUXTLA VER","MEX"]
[null,null,null,"3171 SAN MIGUEL DE ALLENDE GTO","MEX"]
[null,null,null,"3172 CD DE EBANOS S L P","MEX"]
[null,null,null,"3173 CORTAZAR GTO","MEX"]
[null,null,null,"3174 APASEO EL GRANDE GTO","MEX"]
[null,null,null,"3175 SALVATIERRA GTO","MEX"]
[null,null,null,"3176 SAN FELIPE TORRES M GTO","MEX"]
[null,null,null,"3177 SAN JOSE ITURBIDE GTO","MEX"]
[null,null,null,"3178 TEQUISQUIAPAN QRO","MEX"]
[null,null,null,"3179 YAUTEPEC MOR","MEX"]
[null,null,null,"3180 IXTLAHUACA MEX DIURNA","MEX"]
[null,null,null,"3181 OCOYOACAC MEX","MEX"]
[null,null,null,"3182 HUAMANTLA TLAX","MEX"]
[null,null,null,"3183 PIE DE LA CUESTA GRO","MEX"]
[null,null,null,"3184 ARBOL IZTAPALAPA D F","MEX"]
[null,null,null,"3185 MENESES IZTAPALAPA D F","MEX"]
[null,null,null,"3186 OMETEPEC GRO","MEX"]
[null,null,null,"3187 HUEJUTLA HGO","MEX"]
[null,null,null,"3188 TLAQUEPAQUE JAL 18 MARZO","MEX"]
[null,null,null,"3189 TLAQUEPAQUE JAL JUAN D L B","MEX"]
[null,null,null,"3190 YURECUARO MICH","MEX"]
[null,null,null,"3191 HUETAMO MICH","MEX"]
[null,null,null,"3192 COACALCO MEX LOS ARCOS","MEX"]
[null,null,null,"3193 GUADALAJARA JAL CALZADA","MEX"]
[null,null,null,"3194 IRAPUATO GTO CENTRO","MEX"]
[null,null,null,"3195 IRAPUATO GTO SAN ROQUE","MEX"]
[null,null,null,"3196 IZTACALCO D F PANTITLAN","MEX"]
[null,null,null,"3197 PLAZA CUAUTITLAN MEX","MEX"]
[null,null,null,"3198 PUEBLA PUE VILLAVERDE","MEX"]
[null,null,null,"3199 VALLADOLID MDA","MEX"]
[null,null,null,"3200 TANTOYUCA VER","MEX"]
[null,null,null,"3201 ZACAPU MICH","MEX"]
[null,null,null,"3202 JILOTEPEC MEX","MEX"]
[null,null,null,"3203 ESTADO DE MEXICO","MEX"]
[null,null,null,"3204 CHIAPAS","MEX"]
[null,null,null,"3205 MACUSPANA TAB","MEX"]
[null,null,null,"3206 PROGRESO YUC","MEX"]
[null,null,null,"3207 TICUL YUC","MEX"]
[null,null,null,"3208 TONALA CHIA","MEX"]
[null,null,null,"3209 VILLAFLORES CHIA","MEX"]
[null,null,null,"3210 HUIXTLA CHIA","MEX"]
[null,null,null,"3211 CHAMPOTON CAMP","MEX"]
[null,null,null,"3212 LERDO DGO","MEX"]
[null,null,null,"3213 SAN PEDRO COAH","MEX"]
[null,null,null,"3214 OJINAGA CHIH","MEX"]
[null,null,null,"3215 ZUMPANGO MEX","MEX"]
[null,null,null,"3216 AUTLAN DE NAVARRO JAL","MEX"]
[null,null,null,"3217 IXTLAHUACA MEX NOCTURNA","MEX"]
[null,null,null,"3218 MONTERREY NL SERENA NOCTURNA","MEX"]
[null,null,null,"3219 MONTERREY NL SERENA DIURNA","MEX"]
[null,null,null,"3220 MONTERREY NL LAS TORRES","MEX"]
[null,null,null,"3221 POLANCO MIYANA NOCTURNO","MEX"]
[null,null,null,"3222 POLANCO MIYANA DIURNO","MEX"]
[null,null,null,"3223 POLANCO MIYANA VESPERTINO","MEX"]
[null,null,null,"3224 MONTERREY NL SAN PEDRO","MEX"]
[null,null,null,"3225 COM MEX MIXCOAC","MEX"]
[null,null,null,"3226 COM MEX PILARES","MEX"]
[null,null,null,"3227 COM MEX SAN JERONIMO","MEX"]
[null,null,null,"3228 COM MEX P QRO II SUC 53","MEX"]
[null,null,null,"3229 MERCADO 167 MAESTROS","MEX"]
[null,null,null,"3230 MERCADO 200 COLIN","MEX"]
[null,null,null,"3231 MERCADO 210 ALAMEDAS","MEX"]
[null,null,null,"3232 MERCADO 216 TULTITLAN","MEX"]
[null,null,null,"3233 MERCADO 229 EL REAL","MEX"]
[null,null,null,"3234 MERCADO 445 PINO SUAREZ","MEX"]
[null,null,null,"3235 MERCADO 525 TECAMAC 1","MEX"]
[null,null,null,"3236 OJO DE AGUA","MEX"]
[null,null,null,"3237 LERMA","MEX"]
[null,null,null,"3238 YAUTEPEC DE ZARAGOZA","MEX",null,null,null,null,"R003 RECOLECTOR"]
[null,null,null,"3239 GRAL PLUTARCO ELIAS CALLES SON","MEX"]
[null,null,null,"3240 ALTAR SON","MEX"]
[null,null,null,"3241 SARIC SON","MEX"]
[null,null,null,"3242 SANTA CRUZ SON","MEX"]
[null,null,null,"3243 NACO SON","MEX"]
[null,null,null,"3244 JANOS CHIH","MEX"]
[null,null,null,"3245 ASCENSION CHIH","MEX"]
[null,null,null,"3246 PRAXEDIS G GUERRERO CHIH","MEX"]
[null,null,null,"3247 GUADALUPE CHIH","MEX"]
[null,null,null,"3248 COYAME DEL SOTOL CHIH","MEX"]
[null,null,null,"3249 MANUEL BENAVIDES CHIH","MEX"]
[null,null,null,"3250 OCAMPO COAH","MEX"]
[null,null,null,"3251 ZARAGOZA COAH","MEX"]
[null,null,null,"3252 JIMENEZ COAH","MEX"]
[null,null,null,"3253 NAVA COAH","MEX"]
[null,null,null,"3254 HIDALGO COAH","MEX"]
[null,null,null,"3255 ANAHUAC NL","MEX"]
[null,null,null,"3256 GUERRERO TAMPS","MEX"]
[null,null,null,"3257 MIER TAMPS","MEX"]
[null,null,null,"3258 CAMARGO TAMPS","MEX"]
[null,null,null,"3259 GUSTAVO DIAS ORDAZ TAMPS","MEX"]
[null,null,null,"3260 VALLE HERMOSO TAMPS","MEX"]
[null,null,null,"3261 ALLENDE COAH","MEX"]
[null,null,null,"3262 CASTAÑOS COAH","MEX"]
[null,null,null,"3263 MUZQUIZ COAH","MEX"]
[null,null,null,"3264 CUATRO CIENEGAS COAH","MEX"]
[null,null,null,"3265 SAN BUENA VENTURA COAH","MEX"]
[null,null,null,"3266 VALLE DE BRAVO EDO MEX","MEX"]
[null,null,null,"3267 GUADALUPE ZACATECAS","MEX"]
[null,null,null,"3268 MERCADO 518 VILLA DE GARCIA","MEX"]
[null,null,null,"3269 MERCADO 506 VILLA DE SANTIAGO","MEX"]
[null,null,null,"3270 SAN LUIS DE LA PAZ","MEX"]
[null,null,null,"3271 MERCADO 231 LAS AMERICAS","MEX"]
[null,null,null,"3272 PARRAS COAH","MEX"]